fUST/lending_fUST_20240315
["ID","MTS","AMOUNT","RATE_DAILY","PERIOD"]
[318893868,1710444641378,-155.53158992,0.00022263,2]
[318893870,1710444641387,-198.76290621,0.00022263,2]
[318893872,1710444641397,-500.0,0.00022263,2]
[318893874,1710444641407,-500.0,0.00022263,2]
[318893876,1710444641416,-500.0,0.00022263,2]
[318893878,1710444641425,-500.0,0.00022263,2]
[318893880,1710444641435,-500.0,0.00022263,2]
[318893882,1710444641445,-500.0,0.00022263,2]
[318893884,1710444641455,-500.0,0.00022263,2]
[318893886,1710444641464,-500.0,0.00022263,2]
[318893888,1710444641476,-500.0,0.00022263,2]
[318893890,1710444641485,-269.65428657,0.00022263,2]
[318893892,1710444641494,-500.0,0.00022263,2]
[318893894,1710444641503,-500.0,0.00022263,2]
[318893896,1710444641515,-500.0,0.00022263,2]
[318893898,1710444641524,-500.0,0.00022263,2]
[318893900,1710444641533,-500.0,0.00022263,2]
[318893901,1710444641547,-500.0,0.00022263,2]
[318893903,1710444641555,-500.0,0.00022263,2]
[318893905,1710444641565,-500.0,0.00022263,2]
[318893907,1710444641574,-500.0,0.00022263,2]
[318893909,1710444641583,-500.0,0.00022263,2]
[318893911,1710444641592,-500.0,0.00022263,2]
[318893913,1710444641601,-372.60697369,0.00022263,2]
[318893915,1710444641610,-716.98,0.00022317,2]
[318893917,1710444641619,-1849.81,0.00022317,2]
[318893919,1710444641628,-791.78,0.00022318,2]
[318893921,1710444641637,-791.78,0.00022318,2]
[318893923,1710444641646,-791.78,0.00022318,2]
[318893925,1710444641655,-791.78,0.00022318,2]
[318893927,1710444641664,-791.78,0.00022318,2]
[318893929,1710444641673,-791.78,0.00022318,2]
[318893931,1710444641683,-791.78,0.00022318,2]
[318893933,1710444641692,-791.78,0.00022318,2]
[318893935,1710444641701,-791.78,0.00022318,2]
[318893937,1710444641710,-791.78,0.00022318,2]
[318893939,1710444641719,-791.78,0.00022318,2]
[318893941,1710444641728,-791.78,0.00022318,2]
[318893943,1710444641737,-791.78,0.00022318,2]
[318893945,1710444641747,-791.78,0.00022318,2]
[318893947,1710444641756,-791.78,0.00022318,2]
[318893949,1710444641765,-791.9971625,0.00022318,2]
[318893950,1710444641774,-153.0,0.00022329,2]
[318893952,1710444641784,-175.37302991,0.00022346,2]
[318893954,1710444641797,-160.97660551,0.00022346,2]
[318893956,1710444641806,-322.14153149,0.00022346,2]
[318893958,1710444641815,-634.8,0.00022347,2]
[318893960,1710444641825,-661.82,0.00022347,2]
[318893962,1710444641834,-661.82,0.00022347,2]
[318893964,1710444641843,-661.82,0.00022347,2]
[318893966,1710444641852,-661.82,0.00022347,2]
[318893968,1710444641861,-661.82,0.00022347,2]
[318893970,1710444641870,-661.82,0.00022347,2]
[318893971,1710444641882,-661.82,0.00022347,2]
[318893973,1710444641892,-661.82,0.00022347,2]
[318893975,1710444641901,-661.82,0.00022347,2]
[318893977,1710444641911,-661.82,0.00022347,2]
[318893979,1710444641921,-661.82,0.00022347,2]
[318893981,1710444641930,-326.3071395,0.00022347,2]
[318894158,1710444643432,-335.5128605,0.00022347,2]
[318894161,1710444643443,-4.13352231,0.00022347,2]
[318894164,1710444643458,-657.68647769,0.00022347,2]
[318894167,1710444643469,-661.82,0.00022347,2]
[318894170,1710444643482,-662.01325427,0.00022347,2]
[318894173,1710444643492,-1698.37,0.00022347,2]
[318894177,1710444643502,-1698.37,0.00022347,2]
[318894179,1710444643512,-1571.74026804,0.00022347,2]
[318894184,1710444643527,-126.62973196,0.00022347,2]
[318894185,1710444643536,-1698.37,0.00022347,2]
[318894188,1710444643553,-1698.37,0.00022347,2]
[318894191,1710444643563,-1698.37,0.00022347,2]
[318894195,1710444643573,-1660.96167797,0.00022347,2]
[318894199,1710444643585,-37.40832203,0.00022347,2]
[318894201,1710444643595,-1698.37,0.00022347,2]
[318894204,1710444643604,-1698.37,0.00022347,2]
[318894207,1710444643613,-1698.37,0.00022347,2]
[318894209,1710444643622,-1698.37,0.00022347,2]
[318894213,1710444643632,-1698.37,0.00022347,2]
[318894215,1710444643642,-1698.37,0.00022347,2]
[318894218,1710444643651,-1698.37,0.00022347,2]
[318894221,1710444643661,-1698.50430131,0.00022347,2]
[318894223,1710444643670,-716.98,0.00022347,2]
[318894225,1710444643679,-716.98,0.00022347,2]
[318894227,1710444643688,-716.98,0.00022347,2]
[318894229,1710444643698,-716.98,0.00022347,2]
[318894231,1710444643707,-716.98,0.00022347,2]
[318894233,1710444643716,-716.98,0.00022347,2]
[318894235,1710444643725,-716.98,0.00022347,2]
[318894237,1710444643736,-716.98,0.00022347,2]
[318894239,1710444643745,-716.98,0.00022347,2]
[318894241,1710444643754,-716.98,0.00022347,2]
[318894243,1710444643763,-716.98,0.00022347,2]
[318894245,1710444643772,-716.98,0.00022347,2]
[318894247,1710444643781,-716.98,0.00022347,2]
[318894249,1710444643794,-717.19394179,0.00022347,2]
[318894251,1710444643803,-1849.81,0.00022347,2]
[318894253,1710444643812,-1849.81,0.00022347,2]
[318894255,1710444643822,-1849.81,0.00022347,2]
[318894257,1710444643831,-1849.81,0.00022347,2]
[318894259,1710444643839,-1849.81,0.00022347,2]
[318894260,1710444643848,-1849.81,0.00022347,2]
[318894261,1710444643857,-1849.81,0.00022347,2]
[318894262,1710444643866,-1849.81,0.00022347,2]
[318894263,1710444643874,-1849.81,0.00022347,2]
[318894264,1710444643883,-1849.81,0.00022347,2]
[318894265,1710444643893,-1849.81,0.00022347,2]
[318894266,1710444643902,-1849.81,0.00022347,2]
[318894267,1710444643911,-1849.81,0.00022347,2]
[318894268,1710444643920,-1849.99833739,0.00022347,2]
[318894269,1710444643929,-264.93177137,0.00022348,3]
[318894270,1710444643939,-41459.58052582,0.00022348,60]
[318894271,1710444643950,-5430.65908212,0.00022348,60]
[318894273,1710444643963,-35009.83864573,0.00022348,60]
[318894276,1710444643973,-3157.08445785,0.00022348,60]
[318894278,1710444643985,-2150.83403898,0.00022348,60]
[318894280,1710444643998,-441.32706345,0.00022348,60]
[318894283,1710444644011,-4859.84299656,0.00022348,60]
[318894600,1710444647566,-500.0,0.00022223,2]
[318894602,1710444647576,-500.0,0.00022223,2]
[318894604,1710444647586,-197.32183739,0.00022346,2]
[318894606,1710444647595,-302.21733836,0.00022347,2]
[318894608,1710444647606,-753.0114189,0.00022348,60]
[318894613,1710444647641,-838420.52322811,0.00022348,60]
[318894622,1710444647721,-16156.31304631,0.00022348,60]
[318894624,1710444647733,-500.49382646,0.00022348,60]
[318894626,1710444647744,-123075.54700816,0.00022348,60]
[318896025,1710444662920,237.6679447,0.00018098,2]
[318900107,1710444741217,-1512.45888364,0.00018097,2]
[318900108,1710444741239,-3660.54111636,0.00018098,2]
[318900109,1710444835167,-4000000.0,0.00022348,60]
[318900243,1710445664431,-141.94744485,0.00018098,2]
[318900244,1710445664476,-228.25341127,0.00018797,2]
[318900245,1710445664521,-3614.06562024,0.00018896,2]
[318900246,1710445664568,-47687.26236603,0.00018896,2]
[318900247,1710445664613,-7429.9973101,0.00018897,2]
[318900248,1710445664657,-500.0,0.00019178,2]
[318900249,1710445664692,-500.0,0.00019178,2]
[318900250,1710445682028,-166.666666,0.00019178,2]
[318900251,1710445682061,-199.57418419,0.0002,2]
[318900308,1710445832263,-500.0,0.00020135,2]
[318900310,1710445832273,-500.0,0.00020135,2]
[318900312,1710445832284,-48.245,0.00021015,2]
[318900314,1710445832296,-1380.0,0.00021015,2]
[318900316,1710445832308,-455.46000005,0.00021015,2]
[318900319,1710445832321,-1242.36,0.00021015,2]
[318900322,1710445832334,-488.00062019,0.00021015,2]
[318900325,1710445832344,-885.99937981,0.00021016,2]
[318900328,1710445832356,-1114.00062019,0.00021016,2]
[318900331,1710445832366,-681.88143661,0.00021368,2]
[318900334,1710445832376,-177.006371,0.00021918,2]
[318900337,1710445832386,-155.0,0.00021918,2]
[318900340,1710445832398,-9110.15760417,0.00022,2]
[318900343,1710445832409,-302.21733836,0.00022,2]
[318900346,1710445832418,-3204.71044288,0.00022023,2]
[318900348,1710445832427,-1000.0,0.00022024,2]
[318900350,1710445832436,-165.31384015,0.0002207,2]
[318900352,1710445832446,-171.05068638,0.00022123,2]
[318900353,1710445832456,-500.0,0.00022123,2]
[318900355,1710445832466,-500.0,0.00022123,2]
[318900357,1710445832476,-6671.91254048,0.00022124,2]
[318900361,1710445832494,-3047.20770764,0.00022124,2]
[318900868,1710445838017,-70958.99,0.00022,2]
[318900870,1710445838026,-3056.61632233,0.00022124,2]
[318900872,1710445838036,-1681.82954306,0.0002217,2]
[318900874,1710445838045,-581.0,0.000222,2]
[318900876,1710445838055,-473.32234741,0.00022222,2]
[318900878,1710445838064,-500.0,0.00022222,2]
[318900880,1710445838073,-500.0,0.00022222,2]
[318900882,1710445838082,-500.0,0.00022222,2]
[318900884,1710445838091,-500.0,0.00022222,2]
[318900885,1710445838100,-500.0,0.00022222,2]
[318900887,1710445838109,-500.0,0.00022222,2]
[318900889,1710445838118,-500.0,0.00022222,2]
[318900891,1710445838128,-500.0,0.00022222,2]
[318900893,1710445838137,-333.42,0.00022222,2]
[318900895,1710445838146,-500.0,0.00022223,2]
[318900897,1710445838157,-314.90373055,0.00022223,2]
[318900898,1710445838166,-500.0,0.00022223,2]
[318900900,1710445838175,-500.0,0.00022223,2]
[318900902,1710445838185,-500.0,0.00022223,2]
[318900904,1710445838194,-500.0,0.00022223,2]
[318900906,1710445838203,-500.0,0.00022223,2]
[318900908,1710445838212,-155.15515516,0.00022223,2]
[318900910,1710445838222,-500.0,0.00022245,2]
[318900912,1710445838231,-500.0,0.00022246,2]
[318900914,1710445838240,-500.0,0.00022246,2]
[318900916,1710445838250,-623.71,0.00022246,2]
[318900917,1710445838259,-623.71,0.00022246,2]
[318900919,1710445838268,-623.71,0.00022246,2]
[318900921,1710445838278,-623.71,0.00022246,2]
[318900922,1710445838287,-500.0,0.00022246,2]
[318900923,1710445838296,-500.0,0.00022246,2]
[318900924,1710445838305,-500.0,0.00022246,2]
[318900925,1710445838314,-500.0,0.00022246,2]
[318900926,1710445838323,-500.0,0.00022246,2]
[318900927,1710445838333,-500.0,0.00022246,2]
[318900928,1710445838342,-500.0,0.00022263,2]
[318900929,1710445838351,-343.60133658,0.00022263,2]
[318900930,1710445838463,-514.15724835,0.00022263,2]
[318900931,1710445838474,-278.17980074,0.00022263,2]
[318900932,1710445838483,-500.0,0.00022263,2]
[318900933,1710445838493,-500.0,0.00022263,2]
[318900934,1710445838503,-562.44156691,0.00022263,2]
[318900935,1710445838512,-500.0,0.00022263,2]
[318900936,1710445838522,-500.0,0.00022263,2]
[318900937,1710445838532,-500.0,0.00022263,2]
[318900938,1710445838542,-500.0,0.00022263,2]
[318900939,1710445838552,-420.27774255,0.00022263,2]
[318900940,1710445838561,-500.0,0.00022263,2]
[318900941,1710445838571,-623.39122027,0.00022263,2]
[318900942,1710445838580,-500.0,0.00022263,2]
[318900943,1710445838590,-227.67572191,0.00022263,2]
[318900944,1710445838599,-500.0,0.00022263,2]
[318900945,1710445838608,-500.0,0.00022263,2]
[318900946,1710445838618,-500.0,0.00022263,2]
[318900947,1710445838627,-500.0,0.00022263,2]
[318900948,1710445838636,-500.0,0.00022263,2]
[318900949,1710445838646,-516.97550902,0.00022263,2]
[318900950,1710445838659,-1869.19,0.00022263,2]
[318900951,1710445838673,-1869.19,0.00022263,2]
[318900952,1710445838683,-1869.19,0.00022263,2]
[318900953,1710445838692,-1869.19,0.00022263,2]
[318900954,1710445838701,-388.92377357,0.00022263,2]
[318900955,1710445838711,-508.14721297,0.00022263,2]
[318900956,1710445838720,-500.0,0.00022263,2]
[318900957,1710445838730,-500.0,0.00022263,2]
[318900958,1710445838740,-500.0,0.00022263,2]
[318900959,1710445838749,-500.0,0.00022263,2]
[318900960,1710445838758,-500.0,0.00022263,2]
[318900961,1710445838767,-500.0,0.00022263,2]
[318900963,1710445838776,-500.0,0.00022263,2]
[318900964,1710445838786,-500.0,0.00022263,2]
[318900966,1710445838795,-500.0,0.00022263,2]
[318900968,1710445838803,-500.0,0.00022263,2]
[318900970,1710445838813,-500.0,0.00022263,2]
[318900971,1710445838825,-500.0,0.00022263,2]
[318900973,1710445838835,-500.0,0.00022263,2]
[318900975,1710445838845,-500.0,0.00022263,2]
[318900977,1710445838855,-445.41447254,0.00022263,2]
[318900979,1710445838864,-500.0,0.00022264,2]
[318900981,1710445838873,-500.0,0.00022315,2]
[318900983,1710445838882,-500.0,0.00022315,2]
[318900985,1710445838892,-500.0,0.00022315,2]
[318900987,1710445838904,-500.0,0.00022315,2]
[318900989,1710445838914,-500.0,0.00022316,2]
[318900991,1710445838923,-500.0,0.00022316,2]
[318900993,1710445838933,-500.0,0.00022316,2]
[318900995,1710445838942,-272.71,0.00022316,2]
[318900997,1710445838953,-3959.93,0.00022316,2]
[318900999,1710445838962,-3959.93,0.00022316,2]
[318901001,1710445838970,-2687.43913111,0.00022316,2]
[318901003,1710445838983,-1272.49086889,0.00022316,2]
[318901005,1710445838992,-3959.93,0.00022316,2]
[318901007,1710445839001,-153.3433719,0.00022316,2]
[318901009,1710445839010,-757.76,0.00022316,2]
[318901011,1710445839019,-757.76,0.00022316,2]
[318901013,1710445839028,-757.76,0.00022316,2]
[318901015,1710445839037,-757.76,0.00022316,2]
[318901017,1710445839046,-500.0,0.00022316,2]
[318901019,1710445839055,-500.0,0.00022316,2]
[318901021,1710445839064,-500.0,0.00022316,2]
[318901023,1710445839073,-500.0,0.00022316,2]
[318901025,1710445839083,-500.0,0.00022316,2]
[318901027,1710445839092,-623.71,0.00022323,2]
[318901029,1710445839101,-230.21706509,0.00022324,2]
[318901031,1710445839110,-4877.1985466,0.00022324,2]
[318901033,1710445839119,-500.0,0.00022346,2]
[318901035,1710445839128,-1869.19,0.00022346,2]
[318901037,1710445839138,-500.0,0.00022346,2]
[318901039,1710445839146,-500.0,0.00022346,2]
[318901041,1710445839159,-466.96464,0.00022346,2]
[318901042,1710445839168,-500.0,0.00022346,2]
[318901044,1710445839177,-212.15239579,0.00022346,2]
[318901046,1710445839186,-2477.09755515,0.00022346,2]
[318901048,1710445839196,-376.91547686,0.00022346,2]
[318901050,1710445839206,-616.32126211,0.00022346,2]
[318901052,1710445839215,-294.77831715,0.00022346,2]
[318901054,1710445839225,-791.94009913,0.00022346,2]
[318901056,1710445839234,-310.29478082,0.00022347,2]
[318901059,1710445839244,-500.0,0.00022347,2]
[318901060,1710445839253,-500.0,0.00022347,2]
[318901062,1710445839263,-500.0,0.00022347,2]
[318901064,1710445839273,-623.71,0.00022347,2]
[318901066,1710445839283,-623.71,0.00022347,2]
[318901068,1710445839292,-623.71,0.00022347,2]
[318901071,1710445839302,-3959.93,0.00022347,2]
[318901073,1710445839310,-757.76,0.00022347,2]
[318901075,1710445839319,-500.0,0.00022347,2]
[318901077,1710445839328,-165.31384015,0.00022357,2]
[318901079,1710445839337,-530.06259705,0.00022357,2]
[318901081,1710445839346,-200.0,0.00022373,2]
[318901083,1710445839355,-746.21795384,0.00022443,2]
[318901085,1710445839364,-155.13496742,0.00022443,2]
[318901087,1710445839373,-325.2609667,0.00022444,2]
[318901089,1710445839382,-340.47845287,0.00022444,2]
[318901091,1710445839391,-42275.44360227,0.00022444,2]
[318901093,1710445839402,-1869.19,0.00022444,2]
[318901095,1710445839412,-1869.19,0.00022444,2]
[318901097,1710445839421,-1869.19,0.00022444,2]
[318901099,1710445839430,-3959.93,0.00022444,2]
[318901101,1710445839439,-3959.93,0.00022444,2]
[318901103,1710445839448,-3959.93,0.00022444,2]
[318901105,1710445839456,-500.0,0.00022444,2]
[318901106,1710445839466,-500.0,0.00022444,2]
[318901108,1710445839475,-500.0,0.00022444,2]
[318901110,1710445839485,-240.60086643,0.00022444,2]
[318901112,1710445839495,-757.76,0.00022444,2]
[318901114,1710445839504,-757.76,0.00022444,2]
[318901117,1710445839514,-757.76,0.00022444,2]
[318901119,1710445839523,-500.0,0.00022444,2]
[318901120,1710445839533,-500.0,0.00022444,2]
[318901122,1710445839542,-500.0,0.00022444,2]
[318901124,1710445839551,-500.0,0.00022444,2]
[318901127,1710445839562,-500.0,0.00022444,2]
[318901129,1710445839573,-500.0,0.00022444,2]
[318901131,1710445839582,-588.81,0.00022445,2]
[318901133,1710445839592,-623.71,0.00022445,2]
[318901135,1710445839601,-623.71,0.00022445,2]
[318901137,1710445839610,-623.71,0.00022445,2]
[318901139,1710445839619,-623.71,0.00022445,2]
[318901141,1710445839629,-623.71,0.00022445,2]
[318901143,1710445839637,-623.71,0.00022445,2]
[318901144,1710445839647,-623.71,0.00022445,2]
[318901147,1710445839660,-623.71,0.00022445,2]
[318901148,1710445839669,-623.71,0.00022445,2]
[318901150,1710445839680,-623.71,0.00022445,2]
[318901152,1710445839690,-623.71,0.00022445,2]
[318901154,1710445839699,-623.71,0.00022445,2]
[318901156,1710445839708,-623.71,0.00022445,2]
[318901158,1710445839718,-623.71,0.00022445,2]
[318901160,1710445839727,-623.71,0.00022445,2]
[318901162,1710445839737,-623.713,0.00022445,2]
[318901164,1710445839746,-1869.19,0.00022445,2]
[318901166,1710445839756,-1869.19,0.00022445,2]
[318901168,1710445839766,-1869.19,0.00022445,2]
[318901170,1710445839776,-1869.19,0.00022445,2]
[318901172,1710445839787,-1869.19,0.00022445,2]
[318901174,1710445839796,-1869.19,0.00022445,2]
[318901176,1710445839805,-1869.19,0.00022445,2]
[318901178,1710445839815,-1869.19,0.00022445,2]
[318901180,1710445839827,-1869.19,0.00022445,2]
[318901182,1710445839837,-1869.19,0.00022445,2]
[318901184,1710445839846,-1869.19,0.00022445,2]
[318901186,1710445839856,-1869.19,0.00022445,2]
[318901188,1710445839869,-1869.19,0.00022445,2]
[318901190,1710445839880,-1869.19,0.00022445,2]
[318901192,1710445839889,-1869.19,0.00022445,2]
[318901194,1710445839901,-1869.38,0.00022445,2]
[318901196,1710445839911,-3959.93,0.00022445,2]
[318901198,1710445839920,-3959.93,0.00022445,2]
[318901200,1710445839930,-3959.93,0.00022445,2]
[318901202,1710445839940,-3959.93,0.00022445,2]
[318901204,1710445839949,-3959.93,0.00022445,2]
[318901206,1710445839958,-3959.93,0.00022445,2]
[318901208,1710445839969,-3959.93,0.00022445,2]
[318901210,1710445839979,-3959.93,0.00022445,2]
[318901212,1710445839989,-3959.93,0.00022445,2]
[318901214,1710445839998,-3959.93,0.00022445,2]
[318901216,1710445840008,-3959.93,0.00022445,2]
[318901218,1710445840017,-3959.93,0.00022445,2]
[318901220,1710445840026,-3959.93,0.00022445,2]
[318901222,1710445840035,-3959.93,0.00022445,2]
[318901224,1710445840043,-3959.93,0.00022445,2]
[318901226,1710445840053,-3407.73762745,0.00022445,2]
[318901229,1710445840066,-552.28439787,0.00022445,2]
[318901231,1710445840075,-345.76984606,0.00022445,2]
[318901233,1710445840084,-191.03482667,0.00022445,2]
[318901235,1710445840095,-298.20615056,0.00022445,2]
[318901237,1710445840106,-268.51902277,0.00022445,2]
[318901239,1710445840115,-757.76,0.00022445,2]
[318901241,1710445840125,-757.76,0.00022445,2]
[318901243,1710445840134,-757.76,0.00022445,2]
[318901245,1710445840143,-757.76,0.00022445,2]
[318901247,1710445840155,-757.76,0.00022445,2]
[318901249,1710445840164,-757.76,0.00022445,2]
[318901251,1710445840174,-688.37049027,0.00022445,2]
[318901253,1710445840186,-69.38950973,0.00022445,2]
[318901255,1710445840196,-757.76,0.00022445,2]
[318901257,1710445840205,-757.76,0.00022445,2]
[318901259,1710445840214,-757.76,0.00022445,2]
[318901261,1710445840223,-513.33900433,0.00022445,2]
[318901402,1710445841557,-244.42099567,0.00022445,2]
[318901404,1710445841567,-757.76,0.00022445,2]
[318901406,1710445841576,-757.76,0.00022445,2]
[318901408,1710445841587,-757.76,0.00022445,2]
[318901410,1710445841596,-757.8531593,0.00022445,2]
[318901412,1710445841606,-500.0,0.00022445,2]
[318901414,1710445841615,-500.0,0.00022445,2]
[318901416,1710445841625,-500.0,0.00022445,2]
[318901418,1710445841635,-500.0,0.00022445,2]
[318901420,1710445841645,-500.0,0.00022445,2]
[318901422,1710445841659,-500.0,0.00022445,2]
[318901424,1710445841668,-500.0,0.00022445,2]
[318901426,1710445841678,-476.68417691,0.00022445,2]
[318901428,1710445841688,-500.0,0.00022445,2]
[318901430,1710445841698,-500.0,0.00022445,2]
[318901432,1710445841708,-500.0,0.00022445,2]
[318901434,1710445841718,-500.0,0.00022445,2]
[318901436,1710445841727,-500.0,0.00022445,2]
[318901438,1710445841737,-500.0,0.00022445,2]
[318901440,1710445841746,-500.0,0.00022445,2]
[318901442,1710445841756,-18076.38295552,0.00022457,60]
[318901445,1710445841768,-492804.61846549,0.00022457,60]
[318901447,1710445841780,-225643.85874878,0.00022457,60]
[318901449,1710445841793,-1035740.00000007,0.00022457,60]
[318901451,1710445841804,-453.74799638,0.00022457,60]
[318901454,1710445841818,-6900.0,0.00022457,60]
[318901456,1710445841829,-6900.0,0.00022457,60]
[318901458,1710445841841,-21239.92799417,0.00022457,60]
[318901465,1710445841908,-20722.00145387,0.00022457,60]
[318901661,1710445843144,-478.98025068,0.00022456,2]
[318901664,1710445843161,-1403.94793746,0.00022456,2]
[318901666,1710445843170,-477.55206254,0.00022457,60]
[318901671,1710445843214,-3753.25999997,0.00022457,60]
[318901674,1710445843226,-910.0,0.00022457,60]
[318901676,1710445843238,-1119.16596102,0.00022457,60]
[318901678,1710445843249,-9109.99999514,0.00022457,60]
[318901680,1710445843261,-475.65385638,0.00022457,60]
[318901960,1710445846132,154.752194,0.00019352,2]
[318902037,1710445846908,166.276254,0.00019352,2]
[318902174,1710445848476,-1000.0,0.00022024,2]
[318902176,1710445848486,-4746.39211177,0.00022456,2]
[318902178,1710445848495,-157.45523329,0.00022456,2]
[318902180,1710445848505,-996.15265494,0.00022456,2]
[318902182,1710445848517,-2208.55778794,0.00022456,2]
[318902184,1710445848526,-2832.71474706,0.00022457,60]
[318902335,1710445849979,-222568.2574968,0.00022457,60]
[318902341,1710445850023,-10343.99999998,0.00022457,60]
[318903692,1710445864916,1647.59889284,0.0001988,9]
[318904745,1710446721354,155.09771156,0.0001988,2]
[318904879,1710447032716,-1814.50338682,0.00021222,2]
[318904883,1710447032757,-68.42480132,0.00021222,2]
[318904885,1710447032767,-24900.0,0.00021223,2]
[318904886,1710447032777,-273.667305,0.00021257,2]
[318904888,1710447032787,-177.006371,0.00021918,2]
[318904890,1710447032798,-155.0,0.00021918,2]
[318904893,1710447032808,-160.22634277,0.00022,2]
[318904896,1710447032819,-251.48291552,0.00022,2]
[318904898,1710447032829,-1669.65414074,0.00022,2]
[318904899,1710447032839,-157.45523329,0.00022168,2]
[318904900,1710447032849,-4746.39211177,0.00022169,2]
[318904901,1710447032859,-876.23319194,0.00022262,2]
[318904902,1710447032871,-1000.0,0.00022386,2]
[318904903,1710447032882,-500.0,0.00022456,2]
[318904904,1710447032891,-160.10212313,0.00022485,2]
[318904905,1710447032904,-247.81351991,0.00022485,2]
[318904906,1710447032914,-500.0,0.00022485,2]
[318904907,1710447032924,-155.21108708,0.00022485,2]
[318904908,1710447032934,-8816.15196292,0.00022486,60]
[318904909,1710447032946,-12674.35147077,0.00022486,60]
[318904910,1710447032958,-37041.17107809,0.00022486,60]
[318905001,1710447038063,-775.68953518,0.00021248,2]
[318905009,1710447038137,-4517.74334802,0.00021248,2]
[318905012,1710447038147,-4031.74293697,0.00022486,60]
[318905207,1710447040117,-704.87272718,0.00022486,60]
[318905208,1710447040132,-1365.82188577,0.00022486,60]
[318906326,1710447050075,1032.47172593,0.0001988,2]
[318910457,1710447093310,310.69657627,0.0002,5]
[318913883,1710447465736,3660.54111636,0.0002,2]
[318913976,1710448234394,-176.847924,0.00020489,2]
[318913978,1710448234404,-176.847924,0.00021392,2]
[318913980,1710448234413,-883.22017753,0.00021917,2]
[318913984,1710448234424,-999.70801061,0.00021917,2]
[318913987,1710448234433,-155.0,0.00021918,2]
[318913990,1710448234442,-155.0,0.00021918,2]
[318913993,1710448234451,-5.94450658,0.00022,2]
[318914250,1710448238410,-176.847924,0.00020284,2]
[318914252,1710448238419,-151.51072671,0.00022,2]
[318914254,1710448238429,-22.08259537,0.00022169,2]
[318914286,1710448238729,-973.06060935,0.00022169,2]
[318914528,1710448241239,-3751.24890705,0.00022169,2]
[318914530,1710448241249,-876.23319194,0.00022385,2]
[318914532,1710448241258,-9465.73906504,0.00022386,2]
[318914534,1710448241269,-241.44927335,0.00022386,2]
[318914536,1710448241279,-578.0,0.000224,2]
[318914538,1710448241288,-3578.11708538,0.00022484,7]
[318914540,1710448241298,-156.85523784,0.00022484,2]
[318914542,1710448241307,-331.46232898,0.00022484,2]
[318914544,1710448241319,-155.16602765,0.00022484,2]
[318914546,1710448241329,-829.35817305,0.00022485,2]
[318914548,1710448241339,-251.13074233,0.00022485,2]
[318914550,1710448241348,-500.0,0.00022485,2]
[318914552,1710448241358,-200.02809902,0.000225,5]
[318914555,1710448241370,-306.0,0.000225,2]
[318914556,1710448241380,-1000.0,0.00022537,2]
[318914558,1710448241389,-1512.45888364,0.00022612,2]
[318914560,1710448241398,-500.0,0.00022635,2]
[318914561,1710448241407,-450.52311747,0.00022636,2]
[318914562,1710448241416,-500.0,0.00022636,2]
[318914563,1710448241425,-500.0,0.00022636,2]
[318914564,1710448241436,-500.0,0.00022636,2]
[318914565,1710448241446,-500.0,0.00022636,2]
[318914566,1710448241454,-255.33622864,0.00022636,2]
[318914567,1710448241464,-500.0,0.00022636,2]
[318914568,1710448241473,-295.97236771,0.00022636,2]
[318914569,1710448241482,-161.18566081,0.00022636,2]
[318914570,1710448241491,-500.0,0.00022636,2]
[318914571,1710448241503,-500.0,0.00022636,2]
[318914572,1710448241628,-441.63066804,0.00022636,2]
[318914573,1710448241637,-182.48132285,0.00022636,2]